[Event "VIII Iberoamericano Mexico 2022"]
[Site "Mexico City"]
[Date "2022.02.16"]
[Round "5.27"]
[White "Fernandez Rivero, Karla July"]
[Black "Martin Del Campo Cardenas, Roberto Abel"]
[Result "0-1"]
[ECO "E91"]
[WhiteElo "2025"]
[BlackElo "2250"]
[Annotator "ChessBase"]
[PlyCount "99"]
[EventDate "2022.02.12"]
[EventType "swiss"]
[EventCountry "MEX"]
[SourceTitle "playchess.com"]
[Source "ChessBase"]
[SourceQuality "1"]
[TimeControl "5400+30"]

1. d4 {[%emt 0:00:09]} Nf6 {[%emt 0:00:12]} 2. c4 {[%emt 0:00:14]} d6 {[%emt 0:00:07]} 3. Nf3 {[%emt 0:00:56]} g6 {[%emt 0:00:18]} 4. Nc3 {[%emt 0:00:24]} Bg7 {[%emt 0:00:04]} 5. e4 {[%emt 0:00:12]} O-O {[%emt 0:00:12]} 6. Be2 {[%emt 0:02:10]} Bg4 {[%emt 0:00:14]} 7. Bg5 {[%emt 0:00:32]} Nfd7 {[%emt 0:01:28]} 8. Qd2 {[%emt 0:01:32]} Nc6 {[%emt 0:01:35]} 9. Be3 {[%emt 0:03:53]} Bxf3 {[%emt 0:01:40]} 10. Bxf3 {[%emt 0:01:20]} e5 {[%emt 0:00:31]} 11. d5 {[%emt 0:00:20]} Nd4 {[%emt 0:00:24]} 12. Be2 {[%emt 0:03:08]} c5 {[%emt 0:00:28]} 13. dxc6 {[%emt 0:02:07]} bxc6 {[%emt 0:00:05]} 14. O-O {[%emt 0:02:57]} Rb8 {[%emt 0:00:22]} 15. Rab1 {[%emt 0:02:09]} a5 {[%emt 0:00:36]} 16. Bd1 {[%emt 0:12:57]} Nb6 {[%emt 0:15:29]} 17. Be2 {[%emt 0:04:59]} Qe7 {[%emt 0:14:16]} 18. b3 {[%emt 0:09:50]} Rfd8 {[%emt 0:07:57]} 19. Kh1 {[%emt 0:08:18]} Ra8 {[%emt 0:04:21]} 20. f4 {[%emt 0:07:34]} Nd7 {[%emt 0:07:01]} 21. f5 {[%emt 0:04:36]} gxf5 {[%emt 0:00:40]} 22. exf5 {[%emt 0:00:14]} Nc5 {[%emt 0:00:19]} 23. Rbe1 {[%emt 0:01:58]} d5 {[%emt 0:10:57]} 24. cxd5 {[%emt 0:14:08]} cxd5 {[%emt 0:00:12]} 25. Bxd4 {[%emt 0:00:13]} exd4 {[%emt 0:00:05]} 26. Nb5 {[%emt 0:00:16]} Ne4 {[%emt 0:02:03]} 27. Qd3 {[%emt 0:01:42]} Qe5 {[%emt 0:00:43]} 28. a4 {[%emt 0:04:20]} Rac8 {[%emt 0:07:24]} 29. Rd1 {[%emt 0:02:33]} Rc6 {[%emt 0:11:57]} 30. f6 {[%emt 0:02:12]} Rxf6 {[%emt 0:00:20]} 31. Rxf6 {[%emt 0:00:33]} Qxf6 {[%emt 0:00:45]} 32. Qxd4 {[%emt 0:04:52]} Qxd4 {[%emt 0:03:21]} 33. Rxd4 {[%emt 0:00:22]} Bxd4 {[%emt 0:03:05]} 34. Nxd4 {[%emt 0:00:05]} Rc8 {[%emt 0:00:14]} 35. g3 {[%emt 0:00:31]} Rc3 {[%emt 0:00:58]} 36. Bb5 {[%emt 0:02:38]} Nc5 {[%emt 0:01:25]} 37. Nc6 {[%emt 0:00:15]} Rxb3 {[%emt 0:02:37]} 38. Ne7+ {[%emt 0:00:17]} Kg7 {[%emt 0:00:21]} 39. Nxd5 {[%emt 0:00:05]} Ra3 {[%emt 0:00:04]} 40. Nb6 {[%emt 0:00:35]} Ra2 {[%emt 0:00:22]} 41. Kg1 {[%emt 0:01:25]} Kf6 {[%emt 0:00:19]} 42. h3 {[%emt 0:00:58]} Ke5 {[%emt 0:00:21]} 43. Nc4+ {[%emt 0:00:16]} Ke4 {[%emt 0:01:17]} 44. Nxa5 {[%emt 0:00:27]} Kf3 {[%emt 0:00:37]} 45. Nc4 {[%emt 0:01:04]} Kxg3 {[%emt 0:00:15]} 46. Kf1 {[%emt 0:00:28]} Nxa4 {[%emt 0:00:13]} 47. Bd7 {[%emt 0:00:19]} Nc3 {[%emt 0:01:20]} 48. Ke1 {[%emt 0:00:46]} f5 {[%emt 0:00:24]} 49. Bxf5 {[%emt 0:00:32]} Ra1+ {[%emt 0:05:02]} 50. Kd2 {[%emt 0:01:09]} 0-1

[Event "VIII Iberoamericano Mexico 2022"]
[Site "Mexico City"]
[Date "2022.02.16"]
[Round "5.28"]
[White "Jorajuria Mendoza, Algol"]
[Black "Tapie Amione, Pablo Adib"]
[Result "1/2-1/2"]
[ECO "B12"]
[WhiteElo "2006"]
[BlackElo "2241"]
[Annotator "ChessBase"]
[PlyCount "86"]
[EventDate "2022.02.12"]
[EventType "swiss"]
[EventCountry "MEX"]
[SourceTitle "playchess.com"]
[Source "ChessBase"]
[SourceQuality "1"]
[TimeControl "5400+30"]

1. e4 {[%emt 0:00:06]} c6 {[%emt 0:10:54]} 2. d4 {[%emt 0:00:25]} d5 {[%emt 0:00:20]} 3. e5 {[%emt 0:00:07]} Bf5 {[%emt 0:00:07]} 4. h4 {[%emt 0:00:24]} Qc8 {[%emt 0:01:39]} 5. Bd3 {[%emt 0:02:55]} Bxd3 {[%emt 0:00:28]} 6. Qxd3 {[%emt 0:00:12]} e6 {[%emt 0:01:22]} 7. c3 {[%emt 0:11:48]} b6 {[%emt 0:03:34]} 8. Nf3 {[%emt 0:05:22]} Qa6 {[%emt 0:00:38]} 9. Ke2 {[%emt 0:04:28]} Ne7 {[%emt 0:08:05]} 10. h5 {[%emt 0:01:17]} h6 {[%emt 0:01:25]} 11. Be3 {[%emt 0:04:18]} Nf5 {[%emt 0:02:26]} 12. Nbd2 {[%emt 0:04:47]} c5 {[%emt 0:01:04]} 13. Qxa6 {[%emt 0:05:21]} Nxa6 {[%emt 0:00:02]} 14. Bf4 {[%emt 0:01:54]} Ne7 {[%emt 0:01:35]} 15. g4 {[%emt 0:03:52]} Rc8 {[%emt 0:12:01]} 16. b3 {[%emt 0:04:25]} Nc6 {[%emt 0:01:14]} 17. a3 {[%emt 0:01:31]} Nc7 {[%emt 0:08:29]} 18. Rhc1 {[%emt 0:15:28]} cxd4 {[%emt 0:03:09]} 19. Nxd4 {[%emt 0:01:37]} Nxd4+ {[%emt 0:00:03]} 20. cxd4 {[%emt 0:00:07]} Kd7 {[%emt 0:00:05]} 21. b4 {[%emt 0:02:34]} Be7 {[%emt 0:00:28]} 22. Kd3 {[%emt 0:01:29]} Nb5 {[%emt 0:02:43]} 23. a4 {[%emt 0:02:40]} Rxc1 {[%emt 0:00:04]} 24. Rxc1 {[%emt 0:00:04]} Na3 {[%emt 0:00:04]} 25. b5 {[%emt 0:00:58]} Bb4 {[%emt 0:00:17]} 26. Nf1 {[%emt 0:05:57]} Nc4 {[%emt 0:01:40]} 27. Rc2 {[%emt 0:03:08]} a6 {[%emt 0:04:43]} 28. Ne3 {[%emt 0:04:32]} axb5 {[%emt 0:00:22]} 29. axb5 {[%emt 0:00:31]} Na3 {[%emt 0:03:56]} 30. Rb2 {[%emt 0:01:00]} Be7 {[%emt 0:01:03]} 31. Nc2 {[%emt 0:00:24]} Nxc2 {[%emt 0:05:11]} 32. Rxc2 {[%emt 0:00:06]} Ra8 {[%emt 0:00:02]} 33. Bd2 {[%emt 0:00:28]} Ra3+ {[%emt 0:00:10]} 34. Rc3 {[%emt 0:00:12]} Ra5 {[%emt 0:01:28]} 35. Rb3 {[%emt 0:00:06]} Ra1 {[%emt 0:00:03]} 36. f3 {[%emt 0:03:48]} Ra4 {[%emt 0:02:43]} 37. Rb1 {[%emt 0:01:09]} Ra3+ {[%emt 0:01:29]} 38. Bc3 {[%emt 0:00:15]} Bd8 {[%emt 0:00:30]} 39. Kc2 {[%emt 0:00:45]} Ra2+ {[%emt 0:00:11]} 40. Rb2 {[%emt 0:00:10]} Ra1 {[%emt 0:00:08]} 41. Rb1 {[%emt 0:00:05]} Ra2+ {[%emt 0:00:13]} 42. Rb2 {[%emt 0:00:04]} Ra1 {[%emt 0:01:51]} 43. Rb1 {[%emt 0:00:09]} Ra2+ {[%emt 0:00:13]} 1/2-1/2

[Event "VIII Iberoamericano Mexico 2022"]
[Site "Mexico City"]
[Date "2022.02.16"]
[Round "5.29"]
[White "Cortes Rodriguez, Marco"]
[Black "Chinchilla Miranda, Eugenio"]
[Result "0-1"]
[ECO "A09"]
[WhiteElo "2001"]
[BlackElo "2193"]
[Annotator "NA"]
[PlyCount "124"]
[EventDate "2022.02.12"]
[EventType "swiss"]
[EventCountry "MEX"]
[SourceTitle "playchess.com"]
[Source "ChessBase"]
[SourceQuality "1"]
[TimeControl "5400+30"]

1. Nf3 {[%emt 0:07:45]} d5 {[%emt 0:00:15]} 2. c4 {[%emt 0:00:02]} d4 {[%emt 0:00:10]} 3. g3 {[%emt 0:00:13]} Nc6 {[%emt 0:00:09]} 4. Bg2 {[%emt 0:00:04]} e5 {[%emt 0:00:12]} 5. d3 {[%emt 0:00:03]} Bb4+ {[%emt 0:00:25]} 6. Nbd2 {[%emt 0:00:38]} a5 {[%emt 0:00:11]} 7. O-O {[%emt 0:00:06]} Nf6 {[%emt 0:02:08]} 8. a3 {[%emt 0:00:23]} Bc5 {[%emt 0:03:28]} 9. Nb3 {[%emt 0:00:48]} Bd6 {[%emt 0:01:11]} 10. Rb1 {[%emt 0:01:09]} O-O {[%emt 0:01:01]} 11. Bg5 {[%emt 0:08:20]} h6 {[%emt 0:04:27]} 12. Bc1 {[%emt 0:05:32]} Re8 {[%emt 0:07:50]} 13. Nfd2 {[%emt 0:07:19]} Bf5 {[%emt 0:05:12]} 14. Ne4 {[%emt 0:00:07]} Nxe4 {[%emt 0:01:21]} 15. dxe4 {[%emt 0:00:28]} Be6 {[%emt 0:01:32]} 16. Qd3 {[%emt 0:00:56]} a4 {[%emt 0:02:40]} 17. Nd2 {[%emt 0:00:02]} Na5 {[%emt 0:00:27]} 18. Rd1 {[%emt 0:04:13]} Bc5 {[%emt 0:06:46]} 19. f4 {[%emt 0:01:53]} f6 {[%emt 0:00:31]} 20. f5 {[%emt 0:00:41]} Bf7 {[%emt 0:00:15]} 21. g4 {[%emt 0:00:29]} Qd6 {[%emt 0:01:51]} 22. h4 {[%emt 0:03:47]} Qa6 {[%emt 0:01:06]} 23. g5 {[%emt 0:00:24]} fxg5 {[%emt 0:01:11]} 24. hxg5 {[%emt 0:00:02]} hxg5 {[%emt 0:00:21]} 25. Qg3 {[%emt 0:00:49]} d3+ $19 {[%emt 0:02:53]} ({Worse is} 25... Nxc4 26. Nxc4 Bxc4 27. Bxg5 $17) 26. e3 {[%emt 0:01:17]} Nxc4 {[%emt 0:00:43]} 27. Nxc4 {[%emt 0:00:54]} Bxc4 {[%emt 0:00:23]} 28. Qxg5 {[%emt 0:00:18]} Qh6 {[%emt 0:02:27]} 29. Qxh6 {[%emt 0:00:40]} gxh6 {[%emt 0:00:01]} 30. Bd2 {[%emt 0:00:26]} Kf7 {[%emt 0:01:51]} 31. Kf2 {[%emt 0:00:02]} Be7 {[%emt 0:05:21]} 32. Rh1 {[%emt 0:00:37]} Bg5 {[%emt 0:00:31]} 33. Bf3 {[%emt 0:00:08]} Kf6 {[%emt 0:00:30]} 34. Rbc1 {[%emt 0:01:32]} b5 {[%emt 0:01:34]} 35. Rc3 {[%emt 0:05:13]} Rg8 {[%emt 0:06:14]} 36. Bh5 {[%emt 0:01:04]} c5 {[%emt 0:01:14]} 37. Rcc1 {[%emt 0:04:10]} Ke7 {[%emt 0:01:39]} 38. Kf3 {[%emt 0:01:11]} Rac8 {[%emt 0:02:28]} 39. Rh2 {[%emt 0:00:52]} Rc6 {[%emt 0:00:49]} 40. Bc3 {[%emt 0:00:49]} Kf6 {[%emt 0:01:09]} 41. Bg4 {[%emt 0:03:25]} Bb3 {[%emt 0:02:57]} 42. Rch1 {[%emt 0:00:35]} Rh8 {[%emt 0:01:34]} 43. Rh5 {[%emt 0:01:15]} Rcc8 {[%emt 0:00:23]} 44. Kf2 {[%emt 0:05:41]} Rb8 {[%emt 0:01:49]} 45. Rc1 {[%emt 0:01:17]} b4 {[%emt 0:04:05]} 46. Bd2 {[%emt 0:00:53]} Bc2 {[%emt 0:01:18]} 47. Rhh1 {[%emt 0:01:58]} bxa3 {[%emt 0:07:13]} 48. bxa3 {[%emt 0:00:02]} Rb2 {[%emt 0:01:20]} 49. Ra1 {[%emt 0:01:36]} Bb3 {[%emt 0:03:30]} 50. Ke1 {[%emt 0:00:09]} Rd8 {[%emt 0:00:47]} 51. Bd1 {[%emt 0:01:10]} Bxd1 {[%emt 0:03:07]} 52. Kxd1 {[%emt 0:00:02]} Rdb8 {[%emt 0:01:44]} 53. Rc1 {[%emt 0:02:25]} R8b5 {[%emt 0:00:23]} 54. Rc4 {[%emt 0:00:25]} Rb1+ {[%emt 0:00:15]} 55. Rc1 {[%emt 0:00:01]} c4 {[%emt 0:01:31]} 56. Bb4 {[%emt 0:02:34]} Rxc1+ {[%emt 0:03:38]} 57. Kxc1 {[%emt 0:00:01]} Bxe3+ {[%emt 0:00:03]} 58. Kb2 {[%emt 0:00:01]} Bd4+ {[%emt 0:00:23]} 59. Kc1 {[%emt 0:00:01]} c3 {[%emt 0:01:35]} 60. Rxh6+ {[%emt 0:00:38]} Kg5 {[%emt 0:00:37]} 61. Rh3 {[%emt 0:00:11]} Rxb4 {[%emt 0:01:56]} 62. axb4 {[%emt 0:00:09]} a3 {[%emt 0:00:14]} 0-1

[Event "VIII Iberoamericano Mexico 2022"]
[Site "Mexico City"]
[Date "2022.02.16"]
[Round "5.30"]
[White "Encinas Varela, David"]
[Black "Hernandez Jimenez, Alexander Andres"]
[Result "1-0"]
[ECO "C55"]
[WhiteElo "1862"]
[BlackElo "2167"]
[Annotator "ChessBase"]
[PlyCount "82"]
[EventDate "2022.02.12"]
[EventType "swiss"]
[EventCountry "MEX"]
[SourceTitle "playchess.com"]
[Source "ChessBase"]
[SourceQuality "1"]
[TimeControl "5400+30"]

1. e4 {[%emt 1:31:00]} e5 {[%emt 0:06:29]} 2. Nf3 {[%emt 0:00:00]} Nc6 {[%emt 0:00:09]} 3. Bc4 {[%emt 0:00:00]} Nf6 {[%emt 0:00:46]} 4. d3 {[%emt 0:00:00]} h6 {[%emt 0:00:14]} 5. O-O {[%emt 0:00:00]} d6 {[%emt 0:00:35]} 6. h3 {[%emt 0:00:00]} g6 {[%emt 0:01:21]} 7. Nc3 {[%emt 0:00:00]} Bg7 {[%emt 0:00:12]} 8. Be3 {[%emt 0:00:00]} O-O {[%emt 0:00:11]} 9. Qd2 {[%emt 0:00:00]} Kh7 {[%emt 0:01:26]} 10. d4 {[%emt 0:00:00]} Nxe4 {[%emt 1:24:07]} 11. Nxe4 {[%emt 0:00:00]} d5 {[%emt 0:00:00]} 12. Bxd5 {[%emt 0:00:00]} Qxd5 {[%emt 0:00:00]} 13. Bxh6 {[%emt 0:00:00]} Nxd4 {[%emt 0:00:00]} 14. Nxd4 {[%emt 0:00:00]} Qxe4 {[%emt 0:00:00]} 15. Bxg7 {[%emt 0:00:00]} Kxg7 {[%emt 0:00:00]} 16. Ne2 {[%emt 0:00:00]} b6 {[%emt 0:00:00]} 17. Ng3 {[%emt 0:00:00]} Qf4 {[%emt 0:00:00]} 18. Qc3 {[%emt 0:00:00]} Qd4 {[%emt 0:00:00]} 19. Qxc7 {[%emt 0:00:00]} Ba6 {[%emt 0:00:00]} 20. c3 {[%emt 0:00:00]} Qc5 {[%emt 0:00:00]} 21. Qxc5 {[%emt 0:00:00]} bxc5 {[%emt 0:00:00]} 22. Rfd1 {[%emt 0:00:00]} Rab8 {[%emt 0:00:00]} 23. b3 {[%emt 0:00:00]} Rfd8 {[%emt 0:00:00]} 24. Ne4 {[%emt 0:00:00]} c4 {[%emt 0:00:00]} 25. b4 {[%emt 0:00:00]} Bb5 {[%emt 0:00:00]} 26. Nd6 {[%emt 0:00:00]} Ba4 {[%emt 0:01:01]} 27. Rd2 {[%emt 0:00:00]} a5 {[%emt 0:00:07]} 28. a3 {[%emt 0:00:00]} Bb3 {[%emt 0:00:40]} 29. Re1 {[%emt 0:00:00]} f6 {[%emt 0:01:38]} 30. f4 {[%emt 0:00:00]} axb4 {[%emt 0:03:00]} 31. axb4 {[%emt 0:00:00]} exf4 {[%emt 0:00:47]} 32. Re4 {[%emt 0:03:15]} Ra8 {[%emt 0:01:49]} 33. Rxf4 {[%emt 0:01:31]} f5 {[%emt 0:01:17]} 34. Rfd4 {[%emt 0:00:18]} Ra1+ {[%emt 0:00:14]} 35. Kh2 {[%emt 0:00:08]} Rf8 {[%emt 0:00:37]} 36. Nxc4 {[%emt 0:01:41]} Rc8 {[%emt 0:00:57]} 37. Rd7+ {[%emt 0:00:55]} Kh6 {[%emt 0:00:02]} 38. Ne5 {[%emt 0:00:52]} Rxc3 {[%emt 0:00:41]} 39. R2d6 {[%emt 0:05:05]} Kg5 {[%emt 0:00:01]} 40. Nxg6 {[%emt 0:00:41]} Re1 {[%emt 0:01:36]} 41. h4+ {[%emt 0:00:11]} Kg4 {[%emt 0:01:03]} 1-0

[Event "VIII Iberoamericano Mexico 2022"]
[Site "Mexico City"]
[Date "2022.02.16"]
[Round "5.31"]
[White "Luna Javier, Edgar Froylan"]
[Black "Macias Zamora, Jose Armando"]
[Result "1-0"]
[ECO "D13"]
[WhiteElo "2148"]
[BlackElo "1488"]
[Annotator "NA"]
[PlyCount "73"]
[EventDate "2022.02.12"]
[EventType "swiss"]
[EventCountry "MEX"]
[SourceTitle "playchess.com"]
[Source "ChessBase"]
[SourceQuality "1"]
[TimeControl "5400+30"]

1. d4 {[%emt 0:06:42]} d5 {[%emt 0:00:05]} 2. Nf3 {[%emt 0:00:11]} Nf6 {[%emt 0:00:14]} 3. Bf4 {[%emt 0:03:50]} c5 {[%emt 0:00:53]} 4. c3 {[%emt 0:02:02]} cxd4 {[%emt 0:07:10]} 5. cxd4 {[%emt 0:00:24]} Qb6 {[%emt 0:01:11]} 6. Qb3 {[%emt 0:10:13]} Nc6 {[%emt 0:09:22]} 7. Nc3 {[%emt 0:08:07]} e6 {[%emt 0:16:36]} 8. e3 {[%emt 0:03:24]} Qxb3 {[%emt 0:02:56]} 9. axb3 {[%emt 0:00:07]} Bb4 {[%emt 0:00:08]} 10. Bd3 {[%emt 0:02:59]} Nh5 {[%emt 0:05:42]} 11. Bg5 {[%emt 0:03:51]} h6 {[%emt 0:00:22]} 12. Bh4 {[%emt 0:00:25]} g5 {[%emt 0:04:31]} 13. Bg3 $15 {[%emt 0:00:24]} O-O {[%emt 0:00:27]} 14. Be5 {[%emt 0:17:19]} g4 {[%emt 0:05:52]} 15. Nd2 {[%emt 0:02:00]} Nxe5 {[%emt 0:01:03]} 16. dxe5 {[%emt 0:00:08]} f5 {[%emt 0:03:53]} 17. g3 {[%emt 0:13:21]} Ng7 {[%emt 0:02:22]} 18. h3 {[%emt 0:00:43]} h5 {[%emt 0:02:20]} 19. hxg4 {[%emt 0:00:45]} hxg4 {[%emt 0:04:15]} 20. Ke2 {[%emt 0:09:06]} Bd7 {[%emt 0:04:10]} 21. Rh6 {[%emt 0:00:22]} Bc6 {[%emt 0:01:24]} 22. Nb5 {[%emt 0:02:08]} Bxb5 {[%emt 0:02:38]} 23. Bxb5 {[%emt 0:00:02]} a6 {[%emt 0:00:56]} 24. Bd7 {[%emt 0:04:28]} Kf7 {[%emt 0:00:17]} 25. Rc1 {[%emt 0:00:00]} Ba5 {[%emt 0:04:57]} 26. b4 {[%emt 0:00:01]} Bb6 {[%emt 0:01:16]} 27. Nb3 {[%emt 0:03:19]} Ke7 {[%emt 0:01:01]} 28. Rh7 {[%emt 0:00:47]} Rf7 {[%emt 0:00:58]} 29. Ba4 {[%emt 0:01:15]} Ne8 {[%emt 0:04:53]} 30. Rh8 {[%emt 0:00:24]} Rf8 {[%emt 0:00:10]} 31. Rh7+ {[%emt 0:00:14]} Rf7 {[%emt 0:00:17]} 32. Rh8 {[%emt 0:00:01]} Rf8 {[%emt 0:00:06]} 33. Rch1 {[%emt 0:01:53]} Ng7 {[%emt 0:05:09]} 34. R8h7 {[%emt 0:01:27]} Rg8 {[%emt 0:02:29]} 35. R1h6 {[%emt 0:01:14]} Bc7 {[%emt 0:01:52]} 36. Nc5 {[%emt 0:00:15]} Bxe5 {[%emt 0:00:59]} 37. Rxe6+ {[%emt 0:00:01]} 1-0

[Event "VIII Iberoamericano Mexico 2022"]
[Site "Mexico City"]
[Date "2022.02.16"]
[Round "5.33"]
[White "Hernandez Yescas, Miguel Alejandro"]
[Black "Lopez Gonzalez, Abel Fabian"]
[Result "0-1"]
[ECO "B12"]
[WhiteElo "1976"]
[BlackElo "2379"]
[Annotator "RC"]
[PlyCount "98"]
[EventDate "2022.02.12"]
[EventType "swiss"]
[EventCountry "MEX"]
[SourceTitle "playchess.com"]
[Source "ChessBase"]
[SourceQuality "1"]
[TimeControl "5400+30"]

1. e4 {[%emt 0:04:36]} c6 {[%emt 0:00:28]} 2. d4 {[%emt 0:00:49]} d5 {[%emt 0:00:05]} 3. e5 {[%emt 0:00:20]} Bf5 {[%emt 0:00:07]} 4. Nf3 {[%emt 0:00:10]} e6 {[%emt 0:00:08]} 5. Be2 {[%emt 0:00:07]} c5 {[%emt 0:00:06]} 6. O-O {[%emt 0:05:55]} Nc6 {[%emt 0:01:37]} 7. Nc3 {[%emt 0:16:33]} a6 {[%emt 0:03:56]} 8. Be3 {[%emt 0:03:17]} Nge7 {[%emt 0:07:45]} 9. h3 {[%emt 0:15:29]} cxd4 {[%emt 0:02:03]} 10. Bxd4 {[%emt 0:01:06]} Nxd4 {[%emt 0:02:51]} 11. Nxd4 {[%emt 0:01:02]} Bg6 {[%emt 0:02:10]} 12. Kh1 {[%emt 0:07:09]} Nc6 {[%emt 0:06:58]} 13. f4 {[%emt 0:10:48]} Bc5 {[%emt 0:21:58]} 14. Nxc6 {[%emt 0:05:43]} bxc6 {[%emt 0:00:28]} 15. Bd3 {[%emt 0:01:45]} Qh4 {[%emt 0:05:49]} 16. Qf3 {[%emt 0:05:33]} O-O {[%emt 0:03:18]} 17. Na4 {[%emt 0:04:59]} Bd4 {[%emt 0:03:32]} 18. Rad1 {[%emt 0:05:25]} Ba7 {[%emt 0:08:04]} 19. b4 {[%emt 0:02:17]} f6 {[%emt 0:07:18]} 20. Bxg6 {[%emt 0:01:57]} hxg6 {[%emt 0:00:16]} 21. exf6 {[%emt 0:01:23]} Rxf6 {[%emt 0:01:16]} 22. Qe2 {[%emt 0:01:56]} Bb8 {[%emt 0:02:32]} 23. Nc5 {[%emt 0:01:00]} Ra7 {[%emt 0:06:37]} 24. Qg4 {[%emt 0:00:45]} Qxg4 {[%emt 0:04:31]} 25. hxg4 {[%emt 0:00:08]} Bxf4 {[%emt 0:00:08]} 26. Nxe6 {[%emt 0:00:23]} Be5 {[%emt 0:00:44]} 27. Nc5 {[%emt 0:00:49]} a5 {[%emt 0:02:03]} 28. Nd3 {[%emt 0:01:01]} Bc3 {[%emt 0:01:28]} 29. a3 {[%emt 0:00:40]} axb4 {[%emt 0:00:19]} 30. Nxb4 {[%emt 0:01:21]} Re6 {[%emt 0:00:40]} 31. Rf3 {[%emt 0:01:01]} Rxa3 {[%emt 0:00:20]} 32. Nd3 {[%emt 0:00:30]} Ra1 {[%emt 0:00:56]} 33. Rxa1 {[%emt 0:00:30]} Bxa1 {[%emt 0:00:03]} 34. Rf1 {[%emt 0:00:31]} Bd4 {[%emt 0:01:49]} 35. Nf4 {[%emt 0:00:19]} Rf6 {[%emt 0:00:39]} 36. g5 {[%emt 0:00:27]} Rf5 {[%emt 0:00:21]} 37. g4 {[%emt 0:00:42]} Rxg5 {[%emt 0:01:02]} 38. Ne6 {[%emt 0:00:06]} Rxg4 {[%emt 0:00:13]} 39. Rf8+ {[%emt 0:00:10]} Kh7 {[%emt 0:00:08]} 40. Rc8 {[%emt 0:00:19]} Bf6 {[%emt 0:03:04]} 41. Nf8+ {[%emt 0:01:00]} Kg8 {[%emt 0:00:33]} 42. Nxg6+ {[%emt 0:00:47]} Kf7 {[%emt 0:00:14]} 43. Nh8+ {[%emt 0:00:18]} Ke7 {[%emt 0:00:29]} 44. Rg8 {[%emt 0:00:50]} Rc4 {[%emt 0:00:50]} 45. Rb8 {[%emt 0:00:32]} Rxc2 {[%emt 0:00:10]} 46. Ng6+ {[%emt 0:00:22]} Ke6 {[%emt 0:00:15]} 47. Rc8 {[%emt 0:00:38]} Kf5 {[%emt 0:00:19]} 48. Nf8 {[%emt 0:00:20]} d4 {[%emt 0:00:05]} 49. Rc7 {[%emt 0:00:40]} d3 {[%emt 0:00:12]} 0-1

[Event "VIII Iberoamericano Mexico 2022"]
[Site "Mexico City"]
[Date "2022.02.16"]
[Round "5.34"]
[White "Castellanos Hernandez, Emilio Au"]
[Black "Garcia Guerrero, Isaac Antonio"]
[Result "1/2-1/2"]
[ECO "A00"]
[WhiteElo "1939"]
[BlackElo "2338"]
[Annotator "ChessBase"]
[PlyCount "42"]
[EventDate "2022.02.12"]
[EventType "swiss"]
[EventCountry "MEX"]
[SourceTitle "playchess.com"]
[Source "ChessBase"]
[SourceQuality "1"]
[TimeControl "5400+30"]

1. Nc3 {[%emt 0:06:56]} c5 {[%emt 0:00:24]} 2. Nf3 {[%emt 0:00:37]} g6 {[%emt 0:00:11]} 3. d4 {[%emt 0:00:08]} cxd4 {[%emt 0:00:20]} 4. Nxd4 {[%emt 0:00:05]} Bg7 {[%emt 0:00:32]} 5. g3 {[%emt 0:00:41]} Nc6 {[%emt 0:02:05]} 6. Nxc6 {[%emt 0:04:44]} bxc6 {[%emt 0:00:55]} 7. Bg2 {[%emt 0:01:46]} Rb8 {[%emt 0:02:27]} 8. O-O {[%emt 0:04:27]} Nf6 {[%emt 0:01:59]} 9. b3 {[%emt 0:02:10]} Qc7 {[%emt 0:05:57]} 10. Bb2 {[%emt 0:02:09]} O-O {[%emt 0:00:34]} 11. e4 {[%emt 0:20:50]} d6 {[%emt 0:02:03]} 12. Qe2 {[%emt 0:03:40]} Nd7 {[%emt 0:08:54]} 13. Na4 {[%emt 0:01:16]} Bxb2 {[%emt 0:01:31]} 14. Nxb2 {[%emt 0:00:01]} Nc5 {[%emt 0:00:22]} 15. Qe3 {[%emt 0:07:09]} Ba6 {[%emt 0:07:18]} 16. Rfd1 {[%emt 0:05:20]} Qb6 {[%emt 0:03:13]} 17. c4 {[%emt 0:06:58]} Ne6 {[%emt 0:07:58]} 18. Qxb6 {[%emt 0:00:16]} Rxb6 {[%emt 0:00:58]} 19. e5 {[%emt 0:01:59]} dxe5 {[%emt 0:52:19]} 20. Na4 {[%emt 0:29:18]} Rbb8 {[%emt 0:00:30]} 21. Nb6 axb6 1/2-1/2

[Event "VIII Iberoamericano Mexico 2022"]
[Site "Mexico City"]
[Date "2022.02.16"]
[Round "5.35"]
[White "Miranda Llanes, Yerisbel"]
[Black "Moran Velez, Francisco R"]
[Result "1-0"]
[ECO "D35"]
[WhiteElo "2261"]
[BlackElo "1931"]
[Annotator "ChessBase"]
[PlyCount "85"]
[EventDate "2022.02.12"]
[EventType "swiss"]
[EventCountry "MEX"]
[SourceTitle "playchess.com"]
[Source "ChessBase"]
[SourceQuality "1"]
[TimeControl "5400+30"]

1. d4 {[%emt 0:00:12]} d5 {[%emt 0:04:26]} 2. c4 {[%emt 0:01:49]} e6 {[%emt 0:00:08]} 3. Nc3 {[%emt 0:00:06]} Nf6 {[%emt 0:00:04]} 4. cxd5 {[%emt 0:00:26]} exd5 {[%emt 0:00:06]} 5. Bg5 {[%emt 0:00:04]} Be7 {[%emt 0:00:18]} 6. e3 {[%emt 0:00:12]} O-O {[%emt 0:00:10]} 7. Bd3 {[%emt 0:00:23]} Be6 {[%emt 0:01:07]} 8. Bf4 {[%emt 0:04:16]} c5 {[%emt 0:04:46]} 9. dxc5 {[%emt 0:00:23]} Nbd7 {[%emt 0:02:25]} 10. Nf3 {[%emt 0:06:47]} Nxc5 {[%emt 0:02:23]} 11. Be2 {[%emt 0:01:21]} Rc8 {[%emt 0:04:40]} 12. O-O {[%emt 0:00:39]} Nce4 {[%emt 0:01:34]} 13. Be5 {[%emt 0:02:46]} Bd6 {[%emt 0:11:43]} 14. Bd4 {[%emt 0:01:40]} Nxc3 {[%emt 0:03:37]} 15. Bxc3 {[%emt 0:00:35]} Ne4 {[%emt 0:00:07]} 16. Bd4 {[%emt 0:00:43]} Bb8 {[%emt 0:05:59]} 17. Qb3 {[%emt 0:04:12]} Bg4 {[%emt 0:14:12]} 18. Rad1 {[%emt 0:20:31]} Ng5 {[%emt 0:10:49]} 19. Rfe1 {[%emt 0:04:19]} Nxf3+ {[%emt 0:22:26]} 20. Bxf3 {[%emt 0:00:21]} Bxf3 {[%emt 0:00:41]} 21. gxf3 {[%emt 0:00:02]} Qg5+ {[%emt 0:00:07]} 22. Kf1 {[%emt 0:01:41]} Bxh2 {[%emt 0:01:14]} 23. Ke2 {[%emt 0:11:44]} Qf5 {[%emt 0:02:08]} 24. Bc3 {[%emt 0:02:56]} Rfd8 {[%emt 0:00:27]} 25. Qxb7 {[%emt 0:23:18]} Be5 {[%emt 0:02:26]} 26. Rxd5 {[%emt 0:02:46]} Rxd5 {[%emt 0:01:19]} 27. Qxd5 {[%emt 0:02:35]} Qc2+ {[%emt 0:01:50]} 28. Qd2 {[%emt 0:01:35]} Qxd2+ {[%emt 0:00:52]} 29. Kxd2 {[%emt 0:00:15]} Bxc3+ {[%emt 0:00:03]} 30. bxc3 {[%emt 0:00:05]} Kf8 {[%emt 0:00:36]} 31. Rb1 {[%emt 0:00:38]} Rc7 {[%emt 0:00:06]} 32. Kd3 {[%emt 0:00:57]} Ke7 {[%emt 0:00:05]} 33. c4 {[%emt 0:00:36]} Kd6 {[%emt 0:00:23]} 34. a4 {[%emt 0:01:33]} h5 {[%emt 0:00:32]} 35. f4 {[%emt 0:00:33]} g6 {[%emt 0:00:23]} 36. Rg1 {[%emt 0:01:17]} Rc5 {[%emt 0:01:44]} 37. e4 {[%emt 0:01:26]} h4 {[%emt 0:00:57]} 38. e5+ {[%emt 0:00:41]} Ke6 {[%emt 0:00:14]} 39. Rh1 {[%emt 0:00:35]} Ra5 {[%emt 0:00:09]} 40. Rxh4 {[%emt 0:00:28]} Rxa4 {[%emt 0:00:05]} 41. Rh8 {[%emt 0:00:53]} Kf5 {[%emt 0:00:33]} 42. Rf8 {[%emt 0:00:13]} Kxf4 {[%emt 0:00:16]} 43. e6 {[%emt 0:00:18]} 1-0